[Event "Late-Titled-Tuesday-Blitz-March-26-2024"]
[Site "Chess.com"]
[Date "2024.03.26"]
[Round "4"]
[White "kids2010"]
[Black "blank0923"]
[Result "1-0"]
[WhiteElo "2806"]
[BlackElo "2580"]
[TimeControl "180+1"]
[EndTime "14:37:07 PDT"]
[Termination "kids2010 won by resignation"]

1. e4 {[%clk 0:03:00]} 1... e5 {[%clk 0:02:57.6]} 2. Nc3 {[%clk 0:03:00.9]} 2...
Nf6 {[%clk 0:02:57.4]} 3. Nf3 {[%clk 0:03:00.6]} 3... Nc6 {[%clk 0:02:57.1]} 4.
Bb5 {[%clk 0:03:01.1]} 4... Bb4 {[%clk 0:02:56.9]} 5. O-O {[%clk 0:02:58.9]}
5... O-O {[%clk 0:02:56.8]} 6. d3 {[%clk 0:02:59.2]} 6... d6 {[%clk 0:02:57.1]}
7. Ne2 {[%clk 0:02:59.3]} 7... Ne7 {[%clk 0:02:57]} 8. Ng3 {[%clk 0:02:55.2]}
8... h6 {[%clk 0:02:51.2]} 9. c3 {[%clk 0:02:54.7]} 9... Ba5 {[%clk 0:02:51.3]}
10. h3 {[%clk 0:02:52.7]} 10... Ng6 {[%clk 0:02:45.9]} 11. d4 {[%clk 0:02:51.4]}
11... c6 {[%clk 0:02:45.2]} 12. Bd3 {[%clk 0:02:50.8]} 12... Re8 {[%clk
0:02:45.3]} 13. Qc2 {[%clk 0:02:48.7]} 13... Bc7 {[%clk 0:02:42.7]} 14. b3
{[%clk 0:02:42.4]} 14... Be6 {[%clk 0:02:41.6]} 15. Rd1 {[%clk 0:02:39.3]} 15...
Qe7 {[%clk 0:02:40.7]} 16. Ba3 {[%clk 0:02:37]} 16... Qd7 {[%clk 0:02:32.7]} 17.
dxe5 {[%clk 0:02:34.7]} 17... dxe5 {[%clk 0:02:30.5]} 18. Bc4 {[%clk 0:02:24.1]}
18... Qc8 {[%clk 0:02:29.4]} 19. Bxe6 {[%clk 0:02:22.8]} 19... Qxe6 {[%clk
0:02:30.3]} 20. Nf5 {[%clk 0:02:22.9]} 20... Rad8 {[%clk 0:02:25.6]} 21. g3
{[%clk 0:02:15.6]} 21... Nf8 {[%clk 0:02:10.6]} 22. Kg2 {[%clk 0:02:10.9]} 22...
g6 {[%clk 0:02:05.5]} 23. Nxh6+ {[%clk 0:01:59.5]} 23... Kg7 {[%clk 0:02:05.3]}
24. Ng5 {[%clk 0:01:58.4]} 24... Qc8 {[%clk 0:02:00.2]} 25. Nhxf7 {[%clk
0:01:57.9]} 25... Rxd1 {[%clk 0:01:59.9]} 26. Rxd1 {[%clk 0:01:58.8]} 1-0

[Event "Late-Titled-Tuesday-Blitz-March-26-2024"]
[Site "Chess.com"]
[Date "2024.03.26"]
[Round "4"]
[White "giomar27"]
[Black "giovannibrandao7"]
[Result "1-0"]
[WhiteElo "2437"]
[BlackElo "2161"]
[TimeControl "180+1"]
[EndTime "14:37:22 PDT"]
[Termination "giomar27 won by resignation"]

1. e4 {[%clk 0:03:00.9]} 1... c5 {[%clk 0:02:32]} 2. Nf3 {[%clk 0:02:59]} 2...
d6 {[%clk 0:02:32.3]} 3. d4 {[%clk 0:02:58.8]} 3... cxd4 {[%clk 0:02:33.2]} 4.
Nxd4 {[%clk 0:02:59.5]} 4... Nf6 {[%clk 0:02:33.8]} 5. Nc3 {[%clk 0:03:00.2]}
5... a6 {[%clk 0:02:34.3]} 6. Bc4 {[%clk 0:03:00.8]} 6... e6 {[%clk 0:02:34.5]}
7. Bb3 {[%clk 0:02:59.5]} 7... Be7 {[%clk 0:02:34.9]} 8. g4 {[%clk 0:02:59.1]}
8... O-O {[%clk 0:02:31.1]} 9. g5 {[%clk 0:02:59.2]} 9... Nfd7 {[%clk
0:02:31.3]} 10. Rg1 {[%clk 0:02:58.1]} 10... Nc6 {[%clk 0:02:27.2]} 11. Be3
{[%clk 0:02:58.3]} 11... Qc7 {[%clk 0:02:24]} 12. Qh5 {[%clk 0:02:58.4]} 12...
Re8 {[%clk 0:02:08.4]} 13. O-O-O {[%clk 0:02:57.2]} 13... Nf8 {[%clk 0:02:04.8]}
14. f4 {[%clk 0:02:55.3]} 14... b5 {[%clk 0:02:04.4]} 15. a3 {[%clk 0:02:48.7]}
15... g6 {[%clk 0:01:50.8]} 16. Qh6 {[%clk 0:02:47.3]} 16... Bb7 {[%clk
0:01:30.4]} 17. f5 {[%clk 0:02:44.7]} 17... exf5 {[%clk 0:01:16.8]} 18. Nd5
{[%clk 0:02:34.1]} 18... Qd8 {[%clk 0:01:13.7]} 19. Nxc6 {[%clk 0:02:32.8]}
19... Bxc6 {[%clk 0:01:13.3]} 20. Bb6 {[%clk 0:02:32.8]} 20... Qd7 {[%clk
0:00:54.3]} 21. Nf6+ {[%clk 0:02:32.7]} 21... Bxf6 {[%clk 0:00:53.4]} 22. gxf6
{[%clk 0:02:33.6]} 22... Ne6 {[%clk 0:00:51]} 1-0

[Event "Late-Titled-Tuesday-Blitz-March-26-2024"]
[Site "Chess.com"]
[Date "2024.03.26"]
[Round "4"]
[White "Bkmzzzzz"]
[Black "Evandro_Barbosa"]
[Result "0-1"]
[WhiteElo "2402"]
[BlackElo "2671"]
[TimeControl "180+1"]
[EndTime "14:37:24 PDT"]
[Termination "Evandro_Barbosa won by resignation"]

1. e4 {[%clk 0:03:00.9]} 1... c5 {[%clk 0:03:00.2]} 2. Nf3 {[%clk 0:03:00.6]}
2... e6 {[%clk 0:03:00.7]} 3. d3 {[%clk 0:02:59.9]} 3... Nc6 {[%clk 0:03:00.3]}
4. g3 {[%clk 0:02:59]} 4... g6 {[%clk 0:03:00.7]} 5. Bg2 {[%clk 0:02:58.3]} 5...
Bg7 {[%clk 0:03:01.1]} 6. O-O {[%clk 0:02:58.4]} 6... e5 {[%clk 0:03:01.2]} 7.
c3 {[%clk 0:02:54.9]} 7... Nge7 {[%clk 0:03:01.4]} 8. Be3 {[%clk 0:02:54.4]}
8... d6 {[%clk 0:03:01.3]} 9. d4 {[%clk 0:02:54.7]} 9... exd4 {[%clk 0:03:00]}
10. cxd4 {[%clk 0:02:55.6]} 10... Bg4 {[%clk 0:02:57.6]} 11. dxc5 {[%clk
0:02:17.4]} 11... dxc5 {[%clk 0:02:56.4]} 12. Qc1 {[%clk 0:02:13.6]} 12... Bxf3
{[%clk 0:02:53.1]} 13. Bxf3 {[%clk 0:02:13]} 13... Nd4 {[%clk 0:02:51.9]} 14.
Bxd4 {[%clk 0:02:02.9]} 14... Bxd4 {[%clk 0:02:51.1]} 15. Nc3 {[%clk 0:01:52.5]}
15... O-O {[%clk 0:02:47.3]} 16. Rd1 {[%clk 0:01:47.5]} 16... Qb6 {[%clk
0:02:41.5]} 17. Rb1 {[%clk 0:01:30.8]} 17... Rad8 {[%clk 0:02:38.3]} 18. b3
{[%clk 0:01:08.7]} 18... Qf6 {[%clk 0:02:36.2]} 19. Rd3 {[%clk 0:01:01.8]} 19...
Bxf2+ {[%clk 0:02:30.9]} 0-1

[Event "Late-Titled-Tuesday-Blitz-March-26-2024"]
[Site "Chess.com"]
[Date "2024.03.26"]
[Round "4"]
[White "ThinkingSquares"]
[Black "prime-morty"]
[Result "1-0"]
[WhiteElo "2799"]
[BlackElo "2566"]
[TimeControl "180+1"]
[EndTime "14:37:35 PDT"]
[Termination "ThinkingSquares won by checkmate"]

1. d4 {[%clk 0:02:59.8]} 1... d5 {[%clk 0:02:59.4]} 2. c4 {[%clk 0:03:00.4]}
2... e6 {[%clk 0:02:59.8]} 3. Nf3 {[%clk 0:03:00.9]} 3... a6 {[%clk 0:02:59.7]}
4. cxd5 {[%clk 0:02:59.2]} 4... exd5 {[%clk 0:03:00]} 5. Nc3 {[%clk 0:02:59.8]}
5... Nf6 {[%clk 0:02:59.2]} 6. Bg5 {[%clk 0:02:59.8]} 6... Be7 {[%clk
0:02:58.9]} 7. e3 {[%clk 0:02:59.7]} 7... O-O {[%clk 0:02:58.4]} 8. Bd3 {[%clk
0:02:59.8]} 8... Re8 {[%clk 0:02:55.7]} 9. Qc2 {[%clk 0:02:56.5]} 9... Nbd7
{[%clk 0:02:53.3]} 10. O-O {[%clk 0:02:53.2]} 10... h6 {[%clk 0:02:53.6]} 11.
Bf4 {[%clk 0:02:48.5]} 11... c5 {[%clk 0:02:52.1]} 12. dxc5 {[%clk 0:02:33.3]}
12... Nxc5 {[%clk 0:02:53]} 13. Rfd1 {[%clk 0:02:26.4]} 13... Nxd3 {[%clk
0:02:46.2]} 14. Qxd3 {[%clk 0:02:26.2]} 14... Be6 {[%clk 0:02:46.6]} 15. Rd2
{[%clk 0:02:23.8]} 15... Qb6 {[%clk 0:02:42.1]} 16. Rad1 {[%clk 0:02:23.5]}
16... Rac8 {[%clk 0:02:40.1]} 17. Be5 {[%clk 0:02:22.8]} 17... Red8 {[%clk
0:02:34.9]} 18. h3 {[%clk 0:02:20]} 18... Qc6 {[%clk 0:02:26.7]} 19. Nd4 {[%clk
0:02:17]} 19... Qc4 {[%clk 0:02:26.7]} 20. Qb1 {[%clk 0:02:08.1]} 20... b5
{[%clk 0:02:04.7]} 21. Nxe6 {[%clk 0:02:05.4]} 21... fxe6 {[%clk 0:02:04.5]} 22.
Qg6 {[%clk 0:02:06.1]} 22... b4 {[%clk 0:02:00.3]} 23. Rd4 {[%clk 0:02:00.4]}
23... Qc6 {[%clk 0:01:24.4]} 24. Rg4 {[%clk 0:01:56.5]} 24... Qe8 {[%clk
0:01:11.8]} 25. Qxg7# {[%clk 0:01:56.3]} 1-0

[Event "Late-Titled-Tuesday-Blitz-March-26-2024"]
[Site "Chess.com"]
[Date "2024.03.26"]
[Round "4"]
[White "KVAIDAN"]
[Black "AccioChess"]
[Result "0-1"]
[WhiteElo "2351"]
[BlackElo "2522"]
[TimeControl "180+1"]
[EndTime "14:37:44 PDT"]
[Termination "AccioChess won by resignation"]

1. f4 {[%clk 0:03:00.5]} 1... e5 {[%clk 0:02:54.2]} 2. d3 {[%clk 0:02:57.5]}
2... exf4 {[%clk 0:02:52.4]} 3. Bxf4 {[%clk 0:02:57.8]} 3... d5 {[%clk
0:02:53.3]} 4. Nf3 {[%clk 0:02:56.9]} 4... Bd6 {[%clk 0:02:53.4]} 5. Qd2 {[%clk
0:02:56.3]} 5... Bxf4 {[%clk 0:02:43.3]} 6. Qxf4 {[%clk 0:02:55.1]} 6... Nf6
{[%clk 0:02:42.7]} 7. Nc3 {[%clk 0:02:54.7]} 7... O-O {[%clk 0:02:42.7]} 8.
O-O-O {[%clk 0:02:54.6]} 8... c5 {[%clk 0:02:39.7]} 9. e4 {[%clk 0:02:54.5]}
9... d4 {[%clk 0:02:39.3]} 10. Ne2 {[%clk 0:02:53.8]} 10... Nc6 {[%clk
0:02:39.1]} 11. h3 {[%clk 0:02:53.1]} 11... Be6 {[%clk 0:02:37.3]} 12. a3 {[%clk
0:02:52.5]} 12... b5 {[%clk 0:02:36.6]} 13. g4 {[%clk 0:02:51.9]} 13... b4
{[%clk 0:02:36.3]} 14. g5 {[%clk 0:02:43.2]} 14... Nh5 {[%clk 0:02:24.9]} 15.
Qh4 {[%clk 0:02:42.1]} 15... bxa3 {[%clk 0:02:24.9]} 16. bxa3 {[%clk 0:02:40.7]}
16... g6 {[%clk 0:02:24]} 17. Nh2 {[%clk 0:02:33.4]} 17... Qa5 {[%clk
0:02:21.6]} 18. Ng4 {[%clk 0:02:29.4]} 18... Qxa3+ {[%clk 0:02:12.1]} 19. Kd2
{[%clk 0:02:29.3]} 19... Qa5+ {[%clk 0:02:11.8]} 20. c3 {[%clk 0:02:27.5]} 20...
dxc3+ {[%clk 0:02:03.5]} 21. Nxc3 {[%clk 0:02:25.7]} 21... Rab8 {[%clk
0:01:56.1]} 22. Nf6+ {[%clk 0:02:18.1]} 22... Nxf6 {[%clk 0:01:53.9]} 23. gxf6
{[%clk 0:02:17.9]} 23... Rb2+ {[%clk 0:01:53.6]} 24. Ke3 {[%clk 0:02:17.9]}
24... Qxc3 {[%clk 0:01:53.4]} 25. Be2 {[%clk 0:02:14.3]} 25... Nd4 {[%clk
0:01:39.2]} 26. Qh6 {[%clk 0:01:43.9]} 26... Rxe2+ {[%clk 0:01:36.8]} 27. Kf4
{[%clk 0:01:44]} 27... Rf2+ {[%clk 0:01:37]} 28. Kg3 {[%clk 0:01:43.9]} 28...
Rxf6 {[%clk 0:01:30.3]} 0-1

[Event "Late-Titled-Tuesday-Blitz-March-26-2024"]
[Site "Chess.com"]
[Date "2024.03.26"]
[Round "4"]
[White "ACollins05"]
[Black "Mops_2004"]
[Result "0-1"]
[WhiteElo "2518"]
[BlackElo "2798"]
[TimeControl "180+1"]
[EndTime "14:38:01 PDT"]
[Termination "Mops_2004 won by checkmate"]

1. Nf3 {[%clk 0:03:00.9]} 1... Nf6 {[%clk 0:02:59.7]} 2. e3 {[%clk 0:03:00.5]}
2... d5 {[%clk 0:02:59]} 3. b3 {[%clk 0:03:00.8]} 3... c6 {[%clk 0:02:58.2]} 4.
Bb2 {[%clk 0:03:01]} 4... Bf5 {[%clk 0:02:58.9]} 5. d4 {[%clk 0:03:00.2]} 5...
e6 {[%clk 0:02:58.9]} 6. Bd3 {[%clk 0:03:00.6]} 6... Bd6 {[%clk 0:02:57.9]} 7.
O-O {[%clk 0:02:59.8]} 7... Nbd7 {[%clk 0:02:56.9]} 8. c4 {[%clk 0:02:59.7]}
8... Bxd3 {[%clk 0:02:55.9]} 9. Qxd3 {[%clk 0:03:00.2]} 9... Ne4 {[%clk
0:02:56.3]} 10. Nc3 {[%clk 0:02:59]} 10... f5 {[%clk 0:02:56.5]} 11. c5 {[%clk
0:02:57.6]} 11... Bc7 {[%clk 0:02:56.2]} 12. b4 {[%clk 0:02:58.2]} 12... a6
{[%clk 0:02:43.9]} 13. a4 {[%clk 0:02:57.9]} 13... O-O {[%clk 0:02:41.1]} 14. b5
{[%clk 0:02:56.5]} 14... Qf6 {[%clk 0:02:33.3]} 15. Ne2 {[%clk 0:02:52.4]} 15...
g5 {[%clk 0:01:52]} 16. g3 {[%clk 0:02:45.1]} 16... h5 {[%clk 0:01:29.1]} 17. h4
{[%clk 0:02:38.9]} 17... gxh4 {[%clk 0:01:19.8]} 18. Nxh4 {[%clk 0:02:38.7]}
18... Kf7 {[%clk 0:01:14.8]} 19. Nf4 {[%clk 0:02:30.2]} 19... Rg8 {[%clk
0:01:03.8]} 20. Kh2 {[%clk 0:02:27.1]} 20... Rg4 {[%clk 0:00:53.3]} 21. Kh3
{[%clk 0:02:09]} 21... Rag8 {[%clk 0:00:51.5]} 22. Qe2 {[%clk 0:01:54.7]} 22...
Rxg3+ {[%clk 0:00:49.1]} 23. fxg3 {[%clk 0:01:51.9]} 23... Rxg3+ {[%clk
0:00:50]} 24. Kh2 {[%clk 0:01:52]} 24... Qxh4+ {[%clk 0:00:50.3]} 25. Nh3 {[%clk
0:01:52.9]} 25... Qxh3# {[%clk 0:00:50.7]} 0-1

[Event "Late-Titled-Tuesday-Blitz-March-26-2024"]
[Site "Chess.com"]
[Date "2024.03.26"]
[Round "4"]
[White "EsmeraldasAnderson03"]
[Black "mbojan"]
[Result "0-1"]
[WhiteElo "2607"]
[BlackElo "2875"]
[TimeControl "180+1"]
[EndTime "14:38:24 PDT"]
[Termination "mbojan won by checkmate"]

1. d4 {[%clk 0:03:00.9]} 1... Nf6 {[%clk 0:03:00]} 2. c4 {[%clk 0:03:01.2]} 2...
g6 {[%clk 0:03:00.4]} 3. Nc3 {[%clk 0:03:01.4]} 3... Bg7 {[%clk 0:03:00.8]} 4.
e4 {[%clk 0:03:01.7]} 4... d6 {[%clk 0:03:01.2]} 5. Be2 {[%clk 0:03:02.5]} 5...
Nbd7 {[%clk 0:03:01.2]} 6. Be3 {[%clk 0:03:03.2]} 6... e5 {[%clk 0:03:01.6]} 7.
d5 {[%clk 0:03:03.8]} 7... Nc5 {[%clk 0:03:02.1]} 8. f3 {[%clk 0:03:03.6]} 8...
a5 {[%clk 0:03:02.3]} 9. g4 {[%clk 0:03:04]} 9... h5 {[%clk 0:03:02.6]} 10. g5
{[%clk 0:03:03.9]} 10... Nh7 {[%clk 0:03:03.1]} 11. h4 {[%clk 0:03:04.6]} 11...
O-O {[%clk 0:03:03.4]} 12. Qd2 {[%clk 0:03:04.9]} 12... f6 {[%clk 0:03:03.6]}
13. Nh3 {[%clk 0:03:04.5]} 13... Bxh3 {[%clk 0:03:03.2]} 14. Rxh3 {[%clk
0:03:04.2]} 14... fxg5 {[%clk 0:03:03.8]} 15. Bxg5 {[%clk 0:03:04.7]} 15... Nxg5
{[%clk 0:03:03.6]} 16. Qxg5 {[%clk 0:03:05.4]} 16... Qxg5 {[%clk 0:03:01.3]} 17.
hxg5 {[%clk 0:03:06.3]} 17... Rf7 {[%clk 0:02:57.2]} 18. Kd2 {[%clk 0:03:01.8]}
18... Bf8 {[%clk 0:02:57.5]} 19. Rg3 {[%clk 0:03:00.9]} 19... Be7 {[%clk
0:02:57.8]} 20. Ke3 {[%clk 0:02:56.6]} 20... Raf8 {[%clk 0:02:57.7]} 21. a3
{[%clk 0:02:50.2]} 21... Nb3 {[%clk 0:02:51.4]} 22. Rh1 {[%clk 0:02:46.6]} 22...
Nd4 {[%clk 0:02:49.5]} 23. Bd1 {[%clk 0:02:37.7]} 23... c6 {[%clk 0:02:49.4]}
24. Rhh3 {[%clk 0:02:30.5]} 24... Bd8 {[%clk 0:02:48.5]} 25. Na4 {[%clk
0:02:15.5]} 25... b5 {[%clk 0:02:45.7]} 26. cxb5 {[%clk 0:02:15.5]} 26... cxb5
{[%clk 0:02:46.6]} 27. Nc3 {[%clk 0:02:15.9]} 27... Bb6 {[%clk 0:02:47.1]} 28.
Kd3 {[%clk 0:02:16.2]} 28... Kg7 {[%clk 0:02:38.2]} 29. Kd2 {[%clk 0:01:56.9]}
29... Rc8 {[%clk 0:02:33.7]} 30. Rh2 {[%clk 0:01:52.1]} 30... Rfc7 {[%clk
0:02:19.5]} 31. Kd3 {[%clk 0:01:49.6]} 31... b4 {[%clk 0:02:17.4]} 32. axb4
{[%clk 0:01:50.5]} 32... axb4 {[%clk 0:02:17.7]} 33. Na4 {[%clk 0:01:51.1]}
33... Ba7 {[%clk 0:02:17.6]} 34. Rd2 {[%clk 0:01:35.6]} 34... Rc1 {[%clk
0:02:14.5]} 35. Rh3 {[%clk 0:01:20.2]} 35... Ra1 {[%clk 0:02:11.3]} 36. b3
{[%clk 0:00:41.9]} 36... Rcc1 {[%clk 0:02:11.1]} 37. Nb2 {[%clk 0:00:40.5]}
37... Rc3# {[%clk 0:02:09.3]} 0-1

[Event "Late-Titled-Tuesday-Blitz-March-26-2024"]
[Site "Chess.com"]
[Date "2024.03.26"]
[Round "4"]
[White "titomagno_64"]
[Black "kacperkarwowski"]
[Result "0-1"]
[WhiteElo "2306"]
[BlackElo "2504"]
[TimeControl "180+1"]
[EndTime "14:38:36 PDT"]
[Termination "kacperkarwowski won by resignation"]

1. d4 {[%clk 0:03:00.9]} 1... Nf6 {[%clk 0:02:57.6]} 2. c4 {[%clk 0:03:00.7]}
2... e6 {[%clk 0:02:55.4]} 3. g3 {[%clk 0:02:59.4]} 3... d5 {[%clk 0:02:53.9]}
4. Nf3 {[%clk 0:02:59.5]} 4... Be7 {[%clk 0:02:52.1]} 5. Bg2 {[%clk 0:02:59.8]}
5... O-O {[%clk 0:02:52.6]} 6. O-O {[%clk 0:03:00.2]} 6... b6 {[%clk 0:02:51]}
7. Ne5 {[%clk 0:02:57.4]} 7... Bb7 {[%clk 0:02:50.6]} 8. Nc3 {[%clk 0:02:57.5]}
8... Nbd7 {[%clk 0:02:49.4]} 9. Qa4 {[%clk 0:02:57.4]} 9... Nxe5 {[%clk
0:02:45.8]} 10. dxe5 {[%clk 0:02:57.1]} 10... Ne4 {[%clk 0:02:46.5]} 11. Nxe4
{[%clk 0:02:50.9]} 11... dxe4 {[%clk 0:02:47.4]} 12. Qc2 {[%clk 0:02:50.9]}
12... Qd4 {[%clk 0:02:43.6]} 13. Bf4 {[%clk 0:02:48.8]} 13... g5 {[%clk
0:02:42.7]} 14. Rad1 {[%clk 0:02:38]} 14... Qc5 {[%clk 0:02:41.2]} 15. Be3
{[%clk 0:02:17.1]} 15... Qxe5 {[%clk 0:02:40.8]} 16. Rd7 {[%clk 0:01:53.6]}
16... Bd6 {[%clk 0:02:37]} 17. Qd2 {[%clk 0:01:25.7]} 17... Bc6 {[%clk
0:02:31.5]} 18. Rxd6 {[%clk 0:01:17]} 18... cxd6 {[%clk 0:02:32.4]} 19. Bxg5
{[%clk 0:01:14.8]} 19... d5 {[%clk 0:02:32]} 20. Bf4 {[%clk 0:00:51.2]} 20...
Qf5 {[%clk 0:02:27.3]} 21. Bh6 {[%clk 0:00:47.4]} 21... Rfd8 {[%clk 0:02:26.2]}
22. cxd5 {[%clk 0:00:46.4]} 22... Bxd5 {[%clk 0:02:21.6]} 23. Bh3 {[%clk
0:00:35.9]} 23... Qg6 {[%clk 0:02:13.1]} 24. g4 {[%clk 0:00:32.6]} 24... Rac8
{[%clk 0:01:56.3]} 25. g5 {[%clk 0:00:31.9]} 25... Bxa2 {[%clk 0:01:47.7]} 26.
Bg2 {[%clk 0:00:24.4]} 26... Rxd2 {[%clk 0:01:46.7]} 0-1

[Event "Late-Titled-Tuesday-Blitz-March-26-2024"]
[Site "Chess.com"]
[Date "2024.03.26"]
[Round "4"]
[White "inagreV"]
[Black "JaackCamel"]
[Result "0-1"]
[WhiteElo "2379"]
[BlackElo "2195"]
[TimeControl "180+1"]
[EndTime "14:38:36 PDT"]
[Termination "JaackCamel won by resignation"]

1. e4 {[%clk 0:03:00.9]} 1... e6 {[%clk 0:02:39.4]} 2. d4 {[%clk 0:03:00.2]}
2... d5 {[%clk 0:02:39.1]} 3. Nc3 {[%clk 0:03:00.6]} 3... Bb4 {[%clk 0:02:37.7]}
4. Ne2 {[%clk 0:02:59.8]} 4... dxe4 {[%clk 0:02:36.8]} 5. a3 {[%clk 0:02:59.8]}
5... Be7 {[%clk 0:02:36]} 6. Nxe4 {[%clk 0:02:59.3]} 6... Nf6 {[%clk 0:02:36]}
7. Nxf6+ {[%clk 0:02:59.5]} 7... Bxf6 {[%clk 0:02:35.8]} 8. Be3 {[%clk
0:03:00.3]} 8... O-O {[%clk 0:02:34.8]} 9. Qd2 {[%clk 0:02:55.8]} 9... Nd7
{[%clk 0:02:27.1]} 10. O-O-O {[%clk 0:02:55.4]} 10... e5 {[%clk 0:02:25]} 11.
dxe5 {[%clk 0:02:53.1]} 11... Nxe5 {[%clk 0:02:23.1]} 12. Qxd8 {[%clk
0:02:51.4]} 12... Rxd8 {[%clk 0:02:19.9]} 13. Rxd8+ {[%clk 0:02:51.9]} 13...
Bxd8 {[%clk 0:02:19.5]} 14. h3 {[%clk 0:02:51.8]} 14... c6 {[%clk 0:02:02.8]}
15. f4 {[%clk 0:02:44.7]} 15... Nc4 {[%clk 0:01:59.7]} 16. Bd4 {[%clk
0:02:44.6]} 16... Bb6 {[%clk 0:01:58.6]} 17. Bxb6 {[%clk 0:02:44.1]} 17... Nxb6
{[%clk 0:01:58.3]} 18. Nd4 {[%clk 0:02:43.8]} 18... g6 {[%clk 0:01:47]} 19. h4
{[%clk 0:02:41.9]} 19... Bg4 {[%clk 0:01:46]} 20. Bd3 {[%clk 0:02:36.7]} 20...
Rd8 {[%clk 0:01:38.6]} 21. Nb3 {[%clk 0:02:36.3]} 21... Nd5 {[%clk 0:01:34.1]}
22. Nc5 {[%clk 0:02:34.4]} 22... Nxf4 {[%clk 0:01:29.6]} 23. Be4 {[%clk
0:02:31.1]} 23... b6 {[%clk 0:01:17.6]} 24. Nb7 {[%clk 0:02:21.6]} 24... Rd7
{[%clk 0:01:06.5]} 25. Bxc6 {[%clk 0:02:19.7]} 25... Rc7 {[%clk 0:01:06.3]} 26.
Be4 {[%clk 0:02:18.9]} 26... f5 {[%clk 0:01:03.4]} 27. Rf1 {[%clk 0:02:18.2]}
27... Ne2+ {[%clk 0:01:00.2]} 28. Kd2 {[%clk 0:02:18.3]} 28... fxe4 {[%clk
0:00:58.4]} 29. Rf4 {[%clk 0:02:13.2]} 29... h5 {[%clk 0:00:33.7]} 30. Nd6
{[%clk 0:01:56.6]} 30... Rd7 {[%clk 0:00:31.4]} 31. Rf6 {[%clk 0:01:55.1]} 31...
Kg7 {[%clk 0:00:28.5]} 0-1

[Event "Late-Titled-Tuesday-Blitz-March-26-2024"]
[Site "Chess.com"]
[Date "2024.03.26"]
[Round "4"]
[White "reevecanada"]
[Black "thesupera12"]
[Result "1/2-1/2"]
[WhiteElo "2675"]
[BlackElo "2426"]
[TimeControl "180+1"]
[EndTime "14:38:39 PDT"]
[Termination "Game drawn by repetition"]

1. Nf3 {[%clk 0:02:58.6]} 1... Nf6 {[%clk 0:02:54.4]} 2. b3 {[%clk 0:02:56.6]}
2... g6 {[%clk 0:02:53.6]} 3. Bb2 {[%clk 0:02:57.5]} 3... Bg7 {[%clk 0:02:54.5]}
4. d3 {[%clk 0:02:57.7]} 4... O-O {[%clk 0:02:55.3]} 5. Nbd2 {[%clk 0:02:58.2]}
5... d5 {[%clk 0:02:55.6]} 6. g3 {[%clk 0:02:58.5]} 6... b6 {[%clk 0:02:55.3]}
7. Bg2 {[%clk 0:02:57.8]} 7... Bb7 {[%clk 0:02:55.3]} 8. O-O {[%clk 0:02:58.2]}
8... c5 {[%clk 0:02:54.6]} 9. Re1 {[%clk 0:02:56]} 9... Nc6 {[%clk 0:02:55.1]}
10. e4 {[%clk 0:02:55.4]} 10... Qd7 {[%clk 0:02:34.6]} 11. e5 {[%clk 0:02:51]}
11... Ne8 {[%clk 0:02:32.1]} 12. e6 {[%clk 0:02:49.6]} 12... fxe6 {[%clk
0:02:31.4]} 13. Bh3 {[%clk 0:02:48.4]} 13... Nc7 {[%clk 0:02:18.7]} 14. Bxg7
{[%clk 0:02:44.6]} 14... Kxg7 {[%clk 0:02:19.6]} 15. Qc1 {[%clk 0:02:42.6]}
15... Rf6 {[%clk 0:02:15.6]} 16. Qb2 {[%clk 0:02:40.8]} 16... Rf8 {[%clk
0:02:14.5]} 17. Ng5 {[%clk 0:02:39.3]} 17... Nd4 {[%clk 0:02:04]} 18. f4 {[%clk
0:02:32.9]} 18... h6 {[%clk 0:01:57]} 19. Ngf3 {[%clk 0:02:30.3]} 19... Nxf3+
{[%clk 0:01:42.2]} 20. Nxf3 {[%clk 0:02:30.4]} 20... d4 {[%clk 0:01:42.5]} 21.
Ne5 {[%clk 0:02:25.9]} 21... Qd5 {[%clk 0:01:39.5]} 22. Re4 {[%clk 0:02:24.1]}
22... Nb5 {[%clk 0:01:30.3]} 23. Ng4 {[%clk 0:02:17.7]} 23... Nc3 {[%clk
0:01:21.1]} 24. Nxf6 {[%clk 0:02:03.8]} 24... Rxf6 {[%clk 0:01:22]} 25. Bg2
{[%clk 0:02:01.3]} 25... Nxe4 {[%clk 0:01:20.5]} 26. Bxe4 {[%clk 0:02:00.3]}
26... Qd7 {[%clk 0:01:21.4]} 27. Re1 {[%clk 0:01:58.3]} 27... Bxe4 {[%clk
0:01:21.4]} 28. Rxe4 {[%clk 0:01:59.2]} 28... Qd5 {[%clk 0:01:18.8]} 29. Qc1
{[%clk 0:01:58.9]} 29... g5 {[%clk 0:01:18.4]} 30. Re5 {[%clk 0:01:56.2]} 30...
Qf3 {[%clk 0:01:14.6]} 31. fxg5 {[%clk 0:01:46]} 31... Qf2+ {[%clk 0:01:13.7]}
32. Kh1 {[%clk 0:01:45]} 32... Qf3+ {[%clk 0:00:57.2]} 33. Kg1 {[%clk
0:01:44.1]} 33... Qf2+ {[%clk 0:00:57.8]} 34. Kh1 {[%clk 0:01:44.3]} 34... Qf3+
{[%clk 0:00:54.6]} 35. Kg1 {[%clk 0:01:44.7]} 1/2-1/2

[Event "Late-Titled-Tuesday-Blitz-March-26-2024"]
[Site "Chess.com"]
[Date "2024.03.26"]
[Round "4"]
[White "Mikayel99"]
[Black "Navyblue1"]
[Result "1-0"]
[WhiteElo "2558"]
[BlackElo "2257"]
[TimeControl "180+1"]
[EndTime "14:38:41 PDT"]
[Termination "Mikayel99 won by resignation"]

1. Nf3 {[%clk 0:03:00.9]} 1... c5 {[%clk 0:02:19.1]} 2. g3 {[%clk 0:03:01.8]}
2... d5 {[%clk 0:02:06.3]} 3. Bg2 {[%clk 0:03:01.8]} 3... Nc6 {[%clk 0:02:06.2]}
4. O-O {[%clk 0:03:02.1]} 4... e5 {[%clk 0:02:05.4]} 5. d3 {[%clk 0:03:02.6]}
5... Be7 {[%clk 0:01:59.3]} 6. Nc3 {[%clk 0:03:02.9]} 6... Nf6 {[%clk
0:01:59.2]} 7. Qe1 {[%clk 0:03:02.8]} 7... d4 {[%clk 0:01:55.6]} 8. Nd1 {[%clk
0:03:02.6]} 8... O-O {[%clk 0:01:54.2]} 9. e4 {[%clk 0:03:03.3]} 9... b5 {[%clk
0:01:42.6]} 10. a4 {[%clk 0:03:01.4]} 10... bxa4 {[%clk 0:01:21.8]} 11. h3
{[%clk 0:02:55.8]} 11... Rb8 {[%clk 0:01:21.1]} 12. Nh2 {[%clk 0:02:56.1]} 12...
Nb4 {[%clk 0:01:15.2]} 13. Qd2 {[%clk 0:02:49.8]} 13... Ba6 {[%clk 0:01:04]} 14.
f4 {[%clk 0:02:45.2]} 14... Nd7 {[%clk 0:01:01.5]} 15. fxe5 {[%clk 0:02:42.9]}
15... Nxe5 {[%clk 0:00:59.6]} 16. Rxa4 {[%clk 0:02:41.7]} 16... Qb6 {[%clk
0:00:52]} 17. b3 {[%clk 0:02:27.8]} 17... Nxc2 {[%clk 0:00:20.1]} 18. Rxa6
{[%clk 0:02:17.8]} 18... Qxa6 {[%clk 0:00:17.9]} 19. Qxc2 {[%clk 0:02:18.2]}
19... Qxd3 {[%clk 0:00:17.5]} 20. Qa2 {[%clk 0:02:11.9]} 20... Qxb3 {[%clk
0:00:17]} 21. Qxa7 {[%clk 0:02:11.9]} 21... Qb7 {[%clk 0:00:16.3]} 22. Qa2
{[%clk 0:02:07.1]} 22... c4 {[%clk 0:00:15.2]} 23. Bf4 {[%clk 0:02:05.9]} 23...
Nd3 {[%clk 0:00:14.5]} 24. Qxc4 {[%clk 0:02:02.8]} 24... Nxf4 {[%clk 0:00:15]}
25. Rxf4 {[%clk 0:01:58.2]} 25... Rbc8 {[%clk 0:00:15.4]} 26. Qd3 {[%clk
0:01:54.9]} 26... Qb3 {[%clk 0:00:14.8]} 27. Qxb3 {[%clk 0:01:54.3]} 1-0